Workbook

Sheet SmartSheet
B1: CostA | C1: CostB | D1: AttackCooldown | E1: Radius | F1: bSingleTarget | G1: DamageExplosive | H1: DamagePierce | I1: DamageBase | K1: TotalCost | L1: Area | M1: FactoredArea | R1: DOT | S1: DOT/$ | T1: DOT*FArea | U1: DOT*Farea/$
A2: Melee1 | B2: 40 | C2: 0 | D2: 1200 | E2: 200 | F2: 0 | G2: 0 | H2: 20 | I2: 0 | K2: =B2 -> 40 | L2: =E2*E2*PI()/(150*150) -> 5.585053606 | M2: =L2*(1-$M$14*F2) -> 5.585053606 | R2: =(G2+H2+I2)/D2*1000 -> 16.66666667 | S2: =R2/K2 -> 0.4166666667 | T2: =R2*M2 -> 93.08422677 | U2: =T2/K2 -> 2.327105669
A3: Melee2 | B3: 40 | C3: 0 | D3: 1000 | E3: 250 | F3: 0 | G3: 0 | H3: 40 | I3: 0 | K3: =B2+B3 -> 80 | L3: =E3*E3*PI()/(150*150) -> 8.72664626 | M3: =L3*(1-$M$14*F3) -> 8.72664626 | R3: 40 | S3: 0.5 | T3: =R3*M3 -> 349.0658504 | U3: =T3/K3 -> 4.36332313
A4: Melee3 | B4: 50 | C4: 0 | D4: 800 | E4: 300 | F4: 0 | G4: 0 | H4: 90 | I4: 0 | K4: =B2+B3+B4 -> 130 | L4: 12.56637061 | M4: 12.56637061 | R4: 112.5 | S4: 0.8653846154 | T4: 1413.716694 | U4: 10.8747438
A5: Ranged1 | B5: 20 | C5: 0 | D5: 200 | E5: 300 | F5: 1 | G5: 5 | H5: 0 | I5: 0 | K5: =B5 -> 20 | L5: 12.56637061 | M5: 5.026548246 | R5: 25 | S5: 1.25 | T5: 125.6637061 | U5: 6.283185307
A6: Ranged2 | B6: 20 | C6: 0 | D6: 200 | E6: 300 | F6: 1 | G6: 10 | H6: 0 | I6: 0 | K6: =B5+B6 -> 40 | L6: 12.56637061 | M6: 5.026548246 | R6: 50 | S6: 1.25 | T6: 251.3274123 | U6: 6.283185307
A7: Ranged3 | B7: 30 | C7: 0 | D7: 225 | E7: 315 | F7: 1 | G7: 20 | H7: 0 | I7: 0 | K7: =B5+B6+B7 -> 70 | L7: 13.8544236 | M7: 5.541769441 | R7: 88.88888889 | S7: 1.26984127 | T7: 492.6017281 | U7: 7.037167544
A8: Slow1 | B8: 80 | C8: 0 | D8: 1000 | E8: 150 | F8: 0 | G8: 0 | H8: 0 | I8: 10 | K8: =B8 -> 80 | L8: 3.141592654 | M8: 3.141592654 | R8: 10 | S8: 0.125 | T8: 31.41592654 | U8: 0.3926990817
A9: Slow2 | B9: 60 | C9: 0 | D9: 800 | E9: 200 | F9: 0 | G9: 0 | H9: 0 | I9: 15 | K9: =B8+B9 -> 140 | L9: 5.585053606 | M9: 5.585053606 | R9: 18.75 | S9: 0.1339285714 | T9: 104.7197551 | U9: 0.7479982509
A10: Slow3 | B10: 60 | C10: 0 | D10: 500 | E10: 300 | F10: 0 | G10: 0 | H10: 0 | I10: 30 | K10: =B8+B9+B10 -> 200 | L10: 12.56637061 | M10: 12.56637061 | R10: 60 | S10: 0.3 | T10: 753.9822369 | U10: 3.769911184
M12: 0 .. 1 penalty amount on area
M13: SingleTargetPenalty
M14: 0.6

Sheet Export
B1: 0 | C1: 1 | D1: 2
A2: Entry1 | B2: 3 | C2: 3 | D2: 3
A3: Entry2 | B3: 150 | C3: 300 | D3: 450
A4: Entry3 | B4: 300 | C4: 450 | D4: 600
A5: Entry4 | B5: 450 | C5: 600 | D5: 750
A6: Entry5 | B6: 3 | C6: 6 | D6: 9
A7: Entry6 | B7: 4.5 | C7: 7.5 | D7: 10.5
A8: Entry7 | B8: 5.5 | C8: 8.5 | D8: 11.5
A9: Entry8 | B9: 8 | C9: 20 | D9: 32
A10: Entry9 | B10: 8 | C10: 20 | D10: 32
A11: Entry10 | B11: 8 | C11: 20 | D11: 32
A12: Entry11 | B12: 0.5 | C12: 0.5 | D12: 0.5
A13: Entry12 | B13: 0.5 | C13: 0.5 | D13: 0.5
A14: Entry13 | B14: 0.5 | C14: 0.5 | D14: 0.5
A15: Entry14 | B15: 0.2 | C15: 0.2 | D15: 0.2
A16: Entry15 | B16: 0.3 | C16: 0.3 | D16: 0.3
A17: Entry16 | B17: 0.4 | C17: 0.4 | D17: 0.4
A18: Entry17 | B18: 1 | C18: 1 | D18: 1
A19: Entry18 | B19: 1 | C19: 1 | D19: 1
A20: Entry19 | B20: 1 | C20: 1 | D20: 1
A21: Entry20 | B21: 1.5 | C21: 1.5 | D21: 1.5
A22: Entry21 | B22: 1.5 | C22: 1.5 | D22: 1.5
A23: Entry22 | B23: 1.5 | C23: 1.5 | D23: 1.5
A24: Entry23 | B24: 0.35 | C24: 0.35 | D24: 0.35
A25: Entry24 | B25: 0.35 | C25: 0.35 | D25: 0.35
A26: Entry25 | B26: 0.35 | C26: 0.35 | D26: 0.35
A27: Entry26 | B27: 0.6 | C27: 0.6 | D27: 0.6
A28: Entry27 | B28: 0.6 | C28: 0.6 | D28: 0.6
A29: Entry28 | B29: 0.6 | C29: 0.6 | D29: 0.6
A30: Entry29 | B30: 3 | C30: 3 | D30: 3
A31: Entry30 | B31: 3 | C31: 3 | D31: 3
A32: Entry31 | B32: 3 | C32: 3 | D32: 3
A33: Entry32 | B33: 3 | C33: 3 | D33: 3
A34: Entry33 | B34: 0.75 | C34: 0.75 | D34: 0.75
A35: Entry34 | B35: 0.75 | C35: 0.75 | D35: 0.75
A36: Entry35 | B36: 0.75 | C36: 0.75 | D36: 0.75
A37: Entry36 | B37: 0.5 | C37: 0.5 | D37: 0.5
